bitfinex-derivatives/quotes_SOLF0:USTF0_20250424
["timestamp","ask_amount","ask_price","bid_price","bid_amount"]
[1745463958448,6.7109,148.97,148.93,6.7121]
[1745463958947,6.7109,148.97,148.89,10.25512977]
[1745463960249,6.7109,148.97,148.93,6.7121]
[1745463962149,6.7103,148.98,148.89,10.25512977]
[1745463962350,6.7103,148.98,148.91,10.25512977]
[1745463963850,6.7103,148.98,148.93,6.7119]
[1745463964051,6.7103,148.98,148.91,10.25512977]
[1745463964452,6.7103,148.98,148.93,6.712]
[1745463964751,6.7106,148.97,148.93,6.712]
[1745463965251,13.27217132,148.97,148.93,6.712]
[1745463965453,6.56157132,148.95,148.87,37.85347132]
[1745463965653,6.56157132,148.93,148.87,33.91037132]
[1745463965853,6.56157132,148.89,148.84,31.78157132]
[1745463966058,6.56157132,148.89,148.84,25.22]
[1745463966549,13.27667132,148.87,148.83,6.7168]
[1745463966755,6.56157132,148.87,148.81,31.78157132]
[1745463967254,6.7145,148.89,148.84,6.7162]
[1745463967653,35.48571728,148.9,148.81,25.22]
[1745463967855,25.22,148.9,148.82,10.26571728]
[1745463968048,12.22531728,148.92,148.81,25.22]
[1745463968049,1.9596,148.92,148.84,10.26571728]
[1745463968652,25.22,148.93,148.86,10.26571728]
[1745463968851,25.22,148.93,148.86,35.48571728]
[1745463969552,25.22,148.93,148.89,6.7142]
[1745463971047,25.22,148.93,148.86,25.22]
[1745463971448,25.22,148.93,148.84,14.23491728]
[1745463972256,6.7135,148.91,148.87,6.7149]
[1745463973559,6.7129,148.92,148.88,6.7146]
[1745463973754,25.22,148.93,148.86,10.26571728]
[1745463975051,31.9326,148.93,148.88,6.7143]
[1745463975259,25.22,148.93,148.84,14.23491728]
[1745463976054,25.22,148.93,148.86,6.7153]
[1745463976055,6.7138,148.9,148.86,6.7153]
[1745463977859,25.22,148.93,148.84,14.23491728]
[1745463978060,25.22,148.93,148.86,10.26571728]
[1745463978255,25.22,148.93,148.9,6.7133]
[1745463978462,25.22,148.96,148.88,10.26571728]
[1745463979260,6.7116,148.95,148.91,6.7132]
[1745463979960,10.26571728,148.99,148.88,10.26571728]
[1745463980157,25.22,148.98,148.9,10.26571728]
[1745463980558,31.9304,148.98,148.94,6.7119]
[1745463981358,25.22,148.98,148.92,10.26571728]
[1745463981661,33.8257,149.01,148.94,10.26571728]
[1745463982051,10.26571728,149.05,148.96,10.26571728]
[1745463982261,25.22,149.04,148.96,10.26571728]
[1745463982462,25.22,149.04,148.98,10.26571728]
[1745463982858,25.22,149.07,149.0,10.26571728]
[1745463983058,25.22,149.07,149.03,6.7078]
[1745463983355,25.22,149.07,149.0,10.26571728]
[1745463983559,25.22,149.07,149.02,10.26571728]
[1745463983859,6.7052,149.09,149.04,6.7074]
[1745463984564,6.7052,149.09,149.05,6.7068]
[1745463984859,62.22882436,149.12,149.08,10.26571728]
[1745463985459,62.22882436,149.12,149.11,6.7043]
[1745463986362,62.22882436,149.12,149.08,10.26571728]
[1745463986864,62.22882436,149.12,149.11,6.7043]
[1745463987064,62.22882436,149.12,149.08,10.26571728]
[1745463987368,31.9221,149.16,149.1,6.7044]
[1745463987666,6.7021,149.16,149.1,6.7044]
[1745463989469,10.26571728,149.15,149.09,25.26]
[1745463989670,10.26571728,149.15,149.06,31.1752]
[1745463990173,6.7037,149.13,149.06,41.44091728]
[1745463990769,6.7037,149.13,149.08,6.7056]
[1745463991467,6.7037,149.13,149.09,6.7051]
[1745463991672,25.24,149.14,149.08,10.26571728]
[1745463991968,12.21301728,149.17,149.12,6.7035]
[1745463992272,6.7021,149.16,149.12,6.7035]
[1745463992874,27.1873,149.17,149.1,35.50571728]
[1745463993273,6.7028,149.15,149.11,6.7042]
[1745463993463,27.1873,149.17,149.11,6.7042]
[1745463993668,27.1873,149.17,149.1,25.24]
[1745463993873,6.7024,149.16,149.11,6.7042]
[1745463994072,27.1873,149.17,149.11,6.7042]
[1745463994574,27.1873,149.17,149.1,35.50571728]
[1745463995074,6.7023,149.16,149.12,6.7035]
[1745463995374,27.1873,149.17,149.1,35.50571728]
[1745463995674,33.8891,149.17,149.12,6.7035]
[1745463995875,27.1873,149.17,149.12,6.7035]
[1745463996174,33.889,149.17,149.1,35.50571728]
[1745463996376,31.9417,149.17,149.1,35.50571728]
[1745463996872,6.701,149.19,149.1,35.50571728]
[1745463997073,6.701,149.19,149.12,10.26571728]
[1745463997273,35.50571728,149.21,149.14,6.7026]
[1745463997875,6.7014,149.18,149.14,6.7026]
[1745463999078,35.50571728,149.21,149.1,35.50571728]
[1745463999277,10.26571728,149.19,149.1,25.24]
[1745463999575,10.26571728,149.19,149.1,35.50571728]
[1745464000780,6.7023,149.16,149.12,6.7037]
[1745464000980,35.50571728,149.21,149.1,35.50571728]
[1745464001375,35.50571728,149.21,149.13,6.7031]
[1745464001376,6.7019,149.17,149.13,6.7031]
[1745464001879,6.7011,149.19,149.12,10.26571728]
[1745464002274,35.50571728,149.21,149.12,10.26571728]
[1745464002471,10.26571728,149.19,149.12,6.7035]
[1745464002770,10.26571728,149.19,149.1,35.50571728]
[1745464003178,6.7018,149.17,149.13,6.7033]
[1745464004180,6.702,149.16,149.12,6.7036]
[1745464004480,10.26571728,149.19,149.1,35.50571728]
[1745464004979,10.26571728,149.19,149.13,6.7034]
[1745464005281,6.7019,149.17,149.13,6.7034]
[1745464006080,6.7013,149.18,149.14,6.7028]
[1745464006386,25.24,149.21,149.14,10.26571728]
[1745464006573,31.9399,149.21,149.17,6.7013]
[1745464006776,25.24,149.21,149.16,10.26571728]
[1745464007173,6.7014,149.18,149.15,2.0137]
[1745464008284,6.7014,149.18,149.15,8.7161]
[1745464008479,6.7014,149.18,149.14,35.48571728]
[1745464008776,6.7016,149.17,149.14,25.22]
[1745464008982,25.24,149.21,149.14,25.22]
[1745464009182,25.24,149.21,149.12,10.26571728]
[1745464009484,25.24,149.21,149.13,6.703]
[1745464009683,6.7018,149.17,149.13,6.703]
[1745464010784,6.7018,149.17,149.14,6.7029]
[1745464011084,6.701,149.19,149.14,6.7029]
[1745464011579,6.701,149.19,149.13,2.0111]
[1745464011780,25.24,149.21,149.14,10.26571728]
[1745464011977,25.24,149.21,149.15,25.22]
[1745464012182,35.48571728,149.24,149.15,25.22]
[1745464012381,6.6998,149.21,149.15,25.22]
[1745464012577,35.48571728,149.24,149.15,25.22]
[1745464012780,10.26571728,149.22,149.15,25.22]
[1745464012986,6.7018,149.17,149.13,8.7143]
[1745464013186,25.22,149.2,149.13,2.0111]
[1745464013386,6.7014,149.18,149.14,6.7026]
[1745464013587,25.22,149.2,149.14,6.7026]
[1745464014689,10.26571728,149.18,149.1,25.22]
[1745464014988,10.26571728,149.14,149.07,1.984]
[1745464015393,6.7045,149.11,149.08,6.7056]
[1745464015690,10.26571728,149.14,149.07,1.984]
[1745464015989,6.7041,149.12,149.09,6.7049]
[1745464016692,6.7034,149.13,149.1,6.7047]
[1745464016991,6.7034,149.13,149.07,1.984]
[1745464017292,6.7034,149.13,149.09,6.705]
[1745464017591,6.7031,149.14,149.07,1.984]
[1745464018094,6.7031,149.14,149.1,6.7043]
[1745464018391,25.22,149.15,149.08,10.26571728]
[1745464018892,6.7035,149.13,149.09,6.705]
[1745464019097,25.22,149.15,149.07,1.984]
[1745464019393,6.7035,149.13,149.08,6.7052]
[1745464019597,25.22,149.15,149.08,6.7052]
[1745464020090,6.7039,149.12,149.08,6.7052]
[1745464020585,6.7035,149.13,149.09,6.7051]
[1745464021095,6.7031,149.14,149.1,6.7047]
[1745464021395,25.22,149.15,149.07,1.984]
[1745464021598,10.26571728,149.14,149.06,31.9262]
[1745464021896,10.26571728,149.12,149.03,27.1641]
[1745464022093,10.26571728,149.1,149.03,1.9841]
[1745464022396,6.7072,149.05,149.0,27.1183]
[1745464022800,6.7072,149.05,149.01,6.7084]
[1745464023597,10.26571728,149.08,149.0,27.1183]
[1745464023801,10.26571728,149.06,148.97,29.1884]
[1745464024194,10.26571728,149.04,148.97,27.1641]
[1745464024398,25.18,149.04,148.97,27.1641]
[1745464024696,12.27721728,149.1,149.0,10.26571728]
[1745464024899,6.7059,149.08,149.03,6.7079]
[1745464027403,25.2,149.14,149.06,10.26571728]
[1745464027704,25.2,149.14,149.08,10.26571728]
[1745464028003,31.9031,149.14,149.09,6.7049]
[1745464028203,25.2,149.14,149.08,10.26571728]
[1745464028704,25.2,149.14,149.06,2.0151]
[1745464028705,25.2,149.14,149.06,12.28081728]
[1745464029202,25.2,149.14,149.08,10.26571728]
[1745464029606,31.9032,149.14,149.09,6.7049]
[1745464030101,25.2,149.17,149.09,25.2]
[1745464030306,25.2,149.18,149.1,10.26571728]
[1745464030507,25.2,149.18,149.1,12.34461728]
[1745464031106,25.2,149.21,149.12,10.26571728]
[1745464031603,6.701,149.19,149.14,6.7029]
[1745464031799,25.2,149.21,149.12,10.26571728]
[1745464032002,6.7015,149.18,149.14,6.7026]
[1745464032303,25.2,149.21,149.14,10.26571728]
[1745464032810,31.9002,149.21,149.17,6.7013]
[1745464033306,25.2,149.21,149.14,10.26571728]
[1745464033510,6.6989,149.23,149.19,6.7006]
[1745464034209,25.18,149.27,149.18,10.26571728]
[1745464034808,25.18,149.27,149.2,10.26571728]
[1745464035612,27.1155,149.3,149.21,25.18]
[1745464035809,27.1155,149.3,149.22,10.26571728]
[1745464036010,10.26571728,149.29,149.21,25.18]
[1745464036512,27.1155,149.3,149.21,35.44571728]
[1745464036713,1.9355,149.3,149.23,10.26571728]
[1745464037010,1.9355,149.3,149.21,35.44571728]
[1745464037210,12.20121728,149.3,149.21,35.44571728]
[1745464037807,1.9355,149.3,149.21,35.44571728]
[1745464038011,1.9355,149.3,149.23,10.26571728]
[1745464038307,25.18,149.31,149.23,10.26571728]
[1745464038612,6.696,149.3,149.26,6.6971]
[1745464038813,25.18,149.31,149.25,10.26571728]
[1745464039017,25.18,149.34,149.25,35.44571728]
[1745464039515,6.6954,149.31,149.27,6.6968]
[1745464039707,25.18,149.33,149.25,35.44571728]
[1745464040615,6.6953,149.31,149.25,35.44571728]
[1745464040916,10.26571728,149.31,149.25,25.18]
[1745464041215,6.6959,149.3,149.24,1.9977]
[1745464041419,35.44571728,149.33,149.24,1.9977]
[1745464041715,6.6954,149.31,149.26,6.6973]
[1745464041911,35.44571728,149.33,149.24,1.9977]
[1745464042113,25.18,149.33,149.25,10.26571728]
[1745464042311,35.44571728,149.33,149.25,10.26571728]
[1745464042506,35.44571728,149.33,149.24,1.9977]
[1745464042711,35.44571728,149.33,149.27,6.6971]
[1745464043215,25.18,149.33,149.25,10.26571728]
[1745464043509,25.18,149.33,149.26,25.16]
[1745464043719,6.6949,149.32,149.26,25.16]
[1745464043915,10.26571728,149.35,149.27,10.26571728]
[1745464044513,6.6947,149.33,149.29,6.6959]
[1745464044817,6.6947,149.33,149.27,10.26571728]
[1745464044818,10.26571728,149.35,149.27,10.26571728]
[1745464045018,10.26571728,149.35,149.26,25.16]
[1745464045218,10.26571728,149.35,149.27,6.697]
[1745464045521,10.26571728,149.35,149.26,25.16]
[1745464045719,10.26571728,149.33,149.26,6.6973]
[1745464046023,25.16,149.32,149.24,12.26341728]
[1745464046320,6.6964,149.29,149.25,6.6977]
[1745464046516,25.16,149.32,149.25,6.6977]
[1745464046719,10.26571728,149.29,149.2,25.16]
[1745464047020,6.698,149.25,149.2,25.16]
[1745464047410,25.56,149.28,149.2,25.16]
[1745464047615,6.6978,149.26,149.22,6.6993]
[1745464047918,25.56,149.28,149.2,25.16]
[1745464048222,6.698,149.25,149.2,31.86]
[1745464048617,10.26571728,149.27,149.2,31.86]
[1745464048822,6.698,149.25,149.2,31.86]
[1745464049122,6.698,149.25,149.2,25.16]
[1745464049928,6.6977,149.26,149.21,6.6995]
[1745464050220,25.56,149.28,149.2,35.42571728]
[1745464050417,25.56,149.28,149.23,6.6987]
[1745464050622,25.56,149.28,149.22,10.26571728]
[1745464050925,25.56,149.28,149.21,1.9718]
[1745464051125,6.698,149.25,149.21,8.6714]
[1745464051422,35.82571728,149.28,149.2,25.16]
[1745464051623,6.6987,149.24,149.2,31.8602]
[1745464052220,6.6981,149.25,149.2,31.8602]
[1745464052414,25.56,149.28,149.2,25.16]
[1745464053023,6.6977,149.26,149.2,25.16]
[1745464053223,25.56,149.28,149.2,25.16]
[1745464053631,6.6977,149.26,149.21,6.6996]
[1745464053829,25.56,149.28,149.21,6.6996]
[1745464054330,6.6978,149.26,149.21,6.6996]
[1745464055030,6.6978,149.26,149.22,6.6993]
[1745464055827,6.698,149.25,149.21,6.6996]
[1745464056130,35.82571728,149.28,149.2,25.16]
[1745464057131,6.6983,149.25,149.2,31.8598]
[1745464057430,6.6983,149.25,149.2,25.16]
[1745464057631,6.6983,149.25,149.21,6.6996]
[1745464057924,35.82571728,149.28,149.2,25.16]
[1745464058131,10.26571728,149.26,149.17,25.56]
[1745464058426,6.6992,149.23,149.17,25.56]
[1745464058732,6.6992,149.23,149.19,6.7006]
[1745464058931,35.82571728,149.24,149.17,25.56]
[1745464059326,35.82571728,149.24,149.17,32.2613]
[1745464059527,6.7001,149.21,149.17,32.2613]
[1745464059830,35.82571728,149.24,149.17,32.2613]
[1745464060229,6.7,149.21,149.17,32.2613]
[1745464060829,6.7,149.21,149.18,6.701]
[1745464061326,25.56,149.24,149.17,25.56]
[1745464061533,25.56,149.24,149.17,35.82571728]
[1745464061831,6.6989,149.23,149.17,35.82571728]
[1745464062032,6.6989,149.23,149.19,6.7003]
[1745464062531,32.2585,149.24,149.17,35.82571728]
[1745464063831,32.2585,149.24,149.2,6.7]
[1745464064631,32.2585,149.24,149.21,6.6998]
[1745464064834,6.6985,149.24,149.21,6.6998]
[1745464065333,25.58,149.27,149.17,35.82571728]
[1745464065833,6.6992,149.23,149.19,6.7006]
[1745464066335,10.26571728,149.26,149.17,25.56]
[1745464066636,10.26571728,149.24,149.14,556.54]
[1745464066833,25.58,149.23,149.15,10.26571728]
[1745464067832,25.58,149.23,149.17,10.26571728]
[1745464068235,32.2791,149.23,149.19,6.7005]
[1745464068938,32.2791,149.23,149.17,10.26571728]
[1745464068939,32.2791,149.23,149.2,6.7002]
[1745464069337,6.6991,149.23,149.2,6.7002]
[1745464070638,6.6994,149.22,149.19,6.7005]
[1745464070835,10.26571728,149.24,149.15,10.26571728]
[1745464071435,6.7002,149.2,149.17,6.7013]
[1745464072238,6.7,149.21,149.17,6.7013]
[1745464072736,10.26571728,149.24,149.17,6.7013]
[1745464073135,6.7005,149.2,149.16,6.7018]
[1745464073333,35.84571728,149.22,149.14,556.54]
[1745464073530,6.7009,149.19,149.15,6.7021]
[1745464074040,35.84571728,149.22,149.15,6.7021]
[1745464074644,6.7009,149.19,149.15,6.7021]
[1745464074838,6.7009,149.19,149.16,6.702]
[1745464075543,6.7009,149.19,149.15,6.7023]
[1745464075839,6.7012,149.18,149.15,6.7023]
[1745464076040,35.84571728,149.22,149.14,25.58]
[1745464076336,10.26571728,149.18,149.11,1.9906]
[1745464076534,6.7025,149.15,149.11,1.9906]
[1745464077332,25.58,149.18,149.11,1.9906]
[1745464077736,25.58,149.18,149.11,12.25631728]
[1745464078342,6.7018,149.17,149.13,6.7033]
[1745464078643,25.58,149.18,149.11,12.25631728]
[1745464078842,6.7023,149.16,149.12,6.7038]
[1745464079846,6.7018,149.17,149.13,6.7033]
[1745464080141,25.58,149.18,149.11,12.25631728]
[1745464080336,25.58,149.18,149.11,14.15131728]
[1745464080539,6.7024,149.16,149.12,6.7035]
[1745464080842,6.7024,149.16,149.11,14.15131728]
[1745464081043,25.58,149.18,149.11,14.15131728]
[1745464081247,25.24,149.21,149.13,10.26571728]
[1745464081443,25.24,149.21,149.11,3.8856]
[1745464082140,25.24,149.21,149.15,6.7024]
[1745464082339,25.24,149.21,149.11,3.8856]
[1745464082540,25.24,149.21,149.13,10.26571728]
[1745464082741,6.7009,149.19,149.15,6.7021]
[1745464084145,6.7004,149.2,149.16,6.702]
[1745464084641,25.24,149.21,149.13,10.26571728]
[1745464084847,25.26,149.24,149.17,10.26571728]
[1745464085246,31.9585,149.24,149.2,6.7]
[1745464085448,25.26,149.24,149.18,27.1992]
[1745464085841,25.26,149.24,149.21,6.6995]
[1745464086347,35.52571728,149.27,149.21,6.6995]
[1745464087750,6.6989,149.23,149.2,6.7001]
[1745464087950,6.6989,149.23,149.18,29.1782]
[1745464087951,35.52571728,149.27,149.18,27.1992]
[1745464088347,6.6991,149.23,149.2,6.7002]
[1745464091655,6.6994,149.22,149.19,6.7006]
[1745464091853,6.6994,149.22,149.18,25.26]
[1745464092057,1.9879,149.29,149.21,10.26571728]
[1745464092250,1.9879,149.29,149.23,10.26571728]
[1745464092756,25.24,149.32,149.23,10.26571728]
[1745464093155,25.24,149.32,149.24,6.6983]
[1745464093853,25.24,149.32,149.25,6.6979]
[1745464094155,25.24,149.32,149.23,10.26571728]
[1745464094658,6.6956,149.31,149.26,6.6975]
[1745464096456,6.6956,149.31,149.23,10.26571728]
[1745464096958,25.24,149.32,149.23,10.26571728]
[1745464097260,25.24,149.32,149.25,10.26571728]
[1745464098058,31.9349,149.32,149.27,6.697]
[1745464098257,31.9349,149.32,149.25,10.26571728]
[1745464098461,25.24,149.32,149.28,6.6962]
[1745464099960,31.9348,149.32,149.28,6.6962]
[1745464100862,25.24,149.32,149.25,10.26571728]
[1745464101364,25.24,149.32,149.26,6.6974]
[1745464101565,10.26571728,149.31,149.23,10.26571728]
[1745464101771,10.26571728,149.31,149.22,25.24]
[1745464102072,10.26571728,149.31,149.24,6.6983]
[1745464102767,6.6976,149.26,149.22,31.9389]
[1745464103075,25.24,149.28,149.22,25.24]
[1745464104171,25.24,149.28,149.23,6.6986]
[1745464104674,6.6973,149.27,149.23,6.6986]
[1745464104971,25.24,149.28,149.22,25.24]
[1745464105163,6.6979,149.26,149.2,1.8772]
[1745464105368,6.6979,149.26,149.23,6.6988]
[1745464105974,25.24,149.28,149.21,6.6994]
[1745464106872,6.6983,149.25,149.22,6.6992]
[1745464107374,6.6985,149.24,149.2,1.8772]
[1745464107873,6.6985,149.24,149.21,6.6994]
[1745464108374,6.6982,149.25,149.22,6.6992]
[1745464108674,25.24,149.28,149.22,6.6992]
[1745464109479,6.6984,149.25,149.22,6.6992]
[1745464109679,25.24,149.28,149.21,6.6996]
[1745464110077,6.6982,149.25,149.2,1.8772]
[1745464110374,25.24,149.28,149.22,6.6993]
[1745464110774,6.6984,149.24,149.22,6.6993]
[1745464111179,10.26571728,149.27,149.19,27.2655]
[1745464111575,10.26571728,149.23,149.16,2.0317]
[1745464111774,35.76571728,149.23,149.17,6.7013]
[1745464111974,35.76571728,149.23,149.15,25.5]
[1745464112575,6.7004,149.2,149.17,6.7016]
[1745464113177,35.76571728,149.23,149.18,6.7011]
[1745464113382,35.76571728,149.23,149.15,25.5]
[1745464113576,6.7016,149.17,149.14,6.7026]
[1745464113776,10.26571728,149.21,149.14,6.7026]
[1745464114078,6.7018,149.17,149.14,6.7026]
[1745464114379,35.76571728,149.19,149.12,25.5]
[1745464114878,35.76571728,149.19,149.14,6.7027]
[1745464116278,6.7016,149.17,149.14,6.7027]
[1745464116674,35.76571728,149.19,149.12,32.2034]
[1745464116875,35.76571728,149.19,149.12,25.5]
[1745464117281,25.5,149.19,149.12,25.5]
[1745464117482,6.7014,149.18,149.14,6.7026]
[1745464118577,6.7014,149.18,149.15,6.7024]
[1745464119883,32.2008,149.19,149.16,6.702]
[1745464120082,27.5045,149.22,149.13,10.26571728]
[1745464120479,34.2042,149.22,149.18,6.7009]
[1745464120879,27.5045,149.22,149.18,6.7009]
[1745464121486,27.5045,149.22,149.17,6.7014]
[1745464122085,6.7005,149.2,149.17,6.7014]
[1745464122384,27.5045,149.22,149.15,6.702]
[1745464122582,6.7004,149.2,149.13,10.26571728]
[1745464122781,6.7004,149.2,149.16,6.7018]
[1745464123082,27.5045,149.22,149.16,6.7018]
[1745464124186,6.701,149.19,149.15,6.7023]
[1745464124385,27.5045,149.22,149.13,10.26571728]
[1745464125387,6.7004,149.2,149.16,6.7016]
[1745464125587,6.7004,149.2,149.13,10.26571728]
[1745464125788,27.5045,149.22,149.13,10.26571728]
[1745464126086,27.5045,149.22,149.15,6.7023]
[1745464126691,27.5045,149.22,149.13,10.26571728]
[1745464127290,6.7005,149.2,149.16,6.7017]
[1745464127891,6.7005,149.2,149.17,6.7015]
[1745464128590,27.5045,149.22,149.18,6.7011]
[1745464128591,6.7,149.21,149.18,6.7011]
[1745464128782,25.5,149.22,149.16,25.5]
[1745464128981,6.7003,149.2,149.17,6.7013]
[1745464129192,25.5,149.22,149.16,25.5]
[1745464130193,6.6995,149.22,149.19,6.7004]
[1745464130792,6.6998,149.21,149.18,6.7009]
[1745464132091,6.7002,149.2,149.18,6.7009]
[1745464132492,6.7,149.21,149.18,6.7009]
[1745464133891,530.74,149.41,149.18,6.7]
[1745464134090,29.5,149.39,149.19,5.8902]
[1745464134290,29.5,149.39,149.32,6.53949732]
[1745464134499,6.53949732,149.36,149.27,30.76]
[1745464134693,6.53949732,149.36,149.2,20.1]
[1745464134893,6.53949732,149.36,149.21,30.76]
[1745464135195,6.53949732,149.36,149.22,30.76]
[1745464135493,10.1992245,149.39,149.28,10.1992245]
[1745464135694,6.6926,149.38,149.29,6.6962]
[1745464135895,10.1992245,149.37,149.29,6.6962]
[1745464136391,10.1992245,149.35,149.28,37.4566]
[1745464136598,10.1992245,149.35,149.28,30.76]
[1745464136895,10.1992245,149.35,149.25,65.9296]
[1745464137190,10.1992245,149.33,149.26,30.76]
[1745464137399,6.6953,149.31,149.24,6.6984]
[1745464137599,10.1992245,149.33,149.23,30.76]
[1745464137600,2.0237,149.32,149.23,30.76]
[1745464137793,2.0237,149.32,149.24,10.1992245]
[1745464138296,2.0237,149.32,149.23,30.76]
[1745464138687,8.7189,149.32,149.24,6.6984]
[1745464138896,2.0237,149.32,149.24,6.6984]
[1745464139296,6.6953,149.31,149.25,6.698]
[1745464140399,6.6953,149.31,149.26,6.6974]
[1745464140599,6.6958,149.3,149.22,40.9592245]
[1745464141004,6.6958,149.3,149.25,6.6979]
[1745464141398,6.6954,149.31,149.25,6.6979]
[1745464141893,10.1992245,149.31,149.22,40.9592245]
[1745464142096,10.1992245,149.27,149.2,3.8247]
[1745464142299,30.76,149.3,149.21,10.1992245]
[1745464143396,6.6963,149.29,149.24,6.6983]
[1745464143693,30.76,149.3,149.2,3.8247]
[1745464143694,30.76,149.3,149.23,10.1992245]
[1745464143898,37.4561,149.3,149.25,6.6976]
[1745464144800,6.6962,149.29,149.25,6.6976]
[1745464145099,30.76,149.3,149.25,6.6976]
[1745464145301,37.4558,149.3,149.25,6.6976]
[1745464145500,30.76,149.3,149.25,6.6976]
[1745464146301,6.6963,149.29,149.25,6.6976]
[1745464147101,37.4558,149.3,149.26,6.6974]
[1745464147902,30.76,149.3,149.23,10.1992245]
[1745464148102,30.76,149.3,149.25,10.1992245]
[1745464148302,2.0237,149.32,149.23,10.1992245]
[1745464149101,6.6959,149.3,149.26,6.6975]
[1745464149301,6.6959,149.3,149.23,10.1992245]
[1745464149695,6.6959,149.3,149.26,6.6972]
[1745464150402,2.0237,149.32,149.23,10.1992245]
[1745464151003,6.6959,149.3,149.26,6.6972]
[1745464152205,6.6955,149.31,149.28,6.6966]
[1745464152407,30.76,149.34,149.25,10.1992245]
[1745464152604,30.76,149.34,149.27,10.1992245]
[1745464152810,37.4542,149.34,149.3,6.6955]
[1745464153003,30.76,149.34,149.29,10.1992245]
[1745464153404,1.9103,149.37,149.29,10.1992245]
[1745464154113,6.6937,149.35,149.31,6.695]
[1745464154911,6.6941,149.34,149.3,6.6956]
[1745464155111,1.9103,149.37,149.29,10.1992245]
[1745464155713,6.6938,149.35,149.31,6.695]
[1745464156113,6.6938,149.35,149.29,10.1992245]
[1745464156510,6.6931,149.36,149.31,10.1992245]
[1745464156711,6.6931,149.36,149.31,40.9392245]
[1745464157014,6.6931,149.36,149.32,6.6947]
[1745464157315,30.76,149.38,149.31,37.435]
[1745464157715,6.6938,149.35,149.31,37.435]
[1745464158013,30.76,149.38,149.32,6.6945]
[1745464158209,6.6938,149.35,149.31,30.74]
[1745464158414,6.6938,149.35,149.31,37.435]
[1745464159615,6.6942,149.34,149.31,37.435]
[1745464160016,30.76,149.38,149.32,6.6948]
[1745464160217,6.6935,149.36,149.32,6.6948]
[1745464160416,30.76,149.38,149.32,6.6948]
[1745464162317,30.76,149.38,149.33,6.6944]
[1745464162821,6.6933,149.36,149.32,6.6947]
[1745464163017,30.76,149.38,149.32,6.6947]
[1745464164120,30.76,149.38,149.31,30.74]
[1745464164320,10.1992245,149.37,149.31,30.74]
[1745464165015,10.1992245,149.37,149.31,37.4352]
[1745464165309,6.6941,149.34,149.31,37.4352]
[1745464166619,6.6936,149.35,149.32,6.6948]
[1745464167225,30.76,149.38,149.31,30.74]
[1745464167520,30.76,149.38,149.31,40.9392245]
[1745464167921,6.6928,149.37,149.34,6.6936]
[1745464170420,6.6923,149.38,149.35,6.6933]
[1745464171322,6.6926,149.37,149.34,6.6937]
[1745464172121,40.6992245,149.42,149.33,10.1992245]
[1745464172122,6.6923,149.38,149.35,6.6934]
[1745464172320,40.6992245,149.42,149.33,10.1992245]
[1745464172923,30.5,149.42,149.33,10.1992245]
[1745464173219,40.6992245,149.42,149.34,6.6936]
[1745464173619,40.6992245,149.42,149.33,10.1992245]
[1745464173818,6.6925,149.38,149.35,6.6935]
[1745464174922,6.6926,149.37,149.35,6.6935]
[1745464175125,6.6926,149.37,149.34,6.6938]
[1745464175528,10.1992245,149.4,149.31,10.1992245]
[1745464175721,10.1992245,149.36,149.28,4.0454]
[1745464175921,10.1992245,149.34,149.26,560.92]
[1745464176122,6.6955,149.31,149.26,30.5]
[1745464176321,10.1992245,149.34,149.26,30.5]
[1745464176824,10.1992245,149.34,149.27,6.6969]